fUSD/lending_fUSD_20250320
["ID","MTS","AMOUNT","RATE_DAILY","PERIOD"]
[356430236,1742436668862,-500.0,0.00028419,2]
[356430237,1742436668872,-590.78,0.00028419,2]
[356430238,1742436668882,-500.0,0.00028419,2]
[356430239,1742436668892,-951.39,0.00028419,2]
[356430240,1742436668901,-594.58,0.00028419,2]
[356430241,1742436668912,-500.0,0.00028419,2]
[356430242,1742436668921,-682.18,0.00028419,2]
[356430243,1742436668931,-668.62,0.00028419,2]
[356430244,1742436668941,-611.83,0.00028419,2]
[356430245,1742436668950,-500.0,0.00028419,2]
[356430246,1742436668960,-500.0,0.00028419,2]
[356430247,1742436668970,-948.52,0.00028419,2]
[356430248,1742436668979,-500.0,0.00028419,2]
[356430249,1742436668989,-500.0,0.00028419,2]
[356430250,1742436668999,-500.0,0.00028419,2]
[356430251,1742436669010,-500.0,0.00028419,2]
[356430252,1742436669020,-500.0,0.00028419,2]
[356430253,1742436669030,-518.08,0.00028419,2]
[356430254,1742436669040,-500.0,0.00028419,2]
[356430255,1742436669050,-921.28,0.00028419,2]
[356430256,1742436669060,-500.0,0.00028419,2]
[356430257,1742436669070,-500.0,0.00028419,2]
[356430258,1742436669080,-163.40228365,0.00028419,2]
[356430259,1742436669090,-500.0,0.00028419,2]
[356430260,1742436669100,-190.77364472,0.00028419,2]
[356430261,1742436669112,-500.0,0.00028419,2]
[356430262,1742436669122,-500.0,0.00028419,2]
[356430263,1742436669132,-500.0,0.00028419,2]
[356430264,1742436669142,-500.0,0.00028419,2]
[356430265,1742436669153,-856.12,0.00028419,2]
[356430266,1742436669163,-529.41,0.00028419,2]
[356430267,1742436669173,-604.35,0.00028419,2]
[356430268,1742436669183,-500.0,0.00028419,2]
[356430269,1742436669193,-500.0,0.00028419,2]
[356430270,1742436669203,-500.0,0.00028419,2]
[356430271,1742436669212,-598.7,0.00028419,2]
[356430272,1742436669222,-686.21,0.00028419,2]
[356430273,1742436669232,-363.78135153,0.00028419,2]
[356430274,1742436669246,-500.0,0.00028419,2]
[356430275,1742436669255,-500.0,0.00028419,2]
[356430276,1742436669265,-500.0,0.00028419,2]
[356430277,1742436669274,-500.0,0.00028419,2]
[356430278,1742436669285,-899.62,0.00028419,2]
[356430279,1742436669295,-642.25,0.00028419,2]
[356430280,1742436669304,-500.0,0.00028419,2]
[356430281,1742436669314,-500.0,0.00028419,2]
[356430282,1742436669324,-1828.51,0.00028419,2]
[356430283,1742436669334,-500.0,0.00028419,2]
[356430284,1742436669344,-500.0,0.00028419,2]
[356430285,1742436669354,-660.1,0.00028419,2]
[356430286,1742436669364,-500.0,0.00028419,2]
[356430287,1742436669374,-519.59,0.00028419,2]
[356430288,1742436669383,-836.75,0.00028419,2]
[356430289,1742436669393,-750.58,0.00028419,2]
[356430290,1742436669403,-787.76,0.00028419,2]
[356430291,1742436669413,-500.0,0.00028419,2]
[356430292,1742436669423,-758.2,0.00028419,2]
[356430293,1742436669432,-500.0,0.00028419,2]
[356430294,1742436669442,-500.0,0.00028419,2]
[356430295,1742436669451,-500.0,0.00028419,2]
[356430296,1742436669461,-580.38,0.00028419,2]
[356430297,1742436669471,-1008.66,0.00028419,2]
[356430298,1742436669480,-500.0,0.00028419,2]
[356430299,1742436669489,-951.45,0.00028419,2]
[356430300,1742436669499,-500.0,0.00028419,2]
[356430301,1742436669508,-500.0,0.00028419,2]
[356430302,1742436669517,-500.0,0.00028419,2]
[356430303,1742436669526,-687.09,0.00028419,2]
[356430304,1742436669535,-500.0,0.00028419,2]
[356430305,1742436669545,-662.78,0.00028419,2]
[356430306,1742436669554,-500.0,0.00028419,2]
[356430307,1742436669564,-531.26,0.00028419,2]
[356430308,1742436669573,-500.0,0.00028419,2]
[356430309,1742436669583,-500.0,0.00028419,2]
[356430310,1742436669592,-500.0,0.00028419,2]
[356430311,1742436669602,-500.0,0.00028419,2]
[356430312,1742436669612,-500.0,0.00028419,2]
[356430313,1742436669622,-613.64,0.00028419,2]
[356430314,1742436669632,-500.0,0.00028419,2]
[356430315,1742436669641,-500.0,0.00028419,2]
[356430316,1742436669651,-500.0,0.00028419,2]
[356430317,1742436669660,-847.05,0.00028419,2]
[356430318,1742436669670,-500.0,0.00028419,2]
[356430319,1742436669681,-173.22873821,0.00028419,2]
[356430320,1742436669691,-1042.03,0.00028419,2]
[356430321,1742436669701,-500.0,0.00028419,2]
[356430322,1742436669711,-500.0,0.00028419,2]
[356430323,1742436669721,-709.52,0.00028419,2]
[356430324,1742436669731,-765.77,0.00028419,2]
[356430325,1742436669740,-500.0,0.00028419,2]
[356430326,1742436669750,-591.65,0.00028419,2]
[356430327,1742436669760,-500.0,0.00028419,2]
[356430328,1742436669770,-500.0,0.0002842,2]
[356430329,1742436669779,-500.0,0.0002842,2]
[356430330,1742436669788,-334.91553532,0.0002842,2]
[356430331,1742436669797,-500.0,0.0002842,2]
[356430332,1742436669807,-209.08469511,0.0002842,2]
[356430333,1742436669817,-707.73,0.0002842,2]
[356430334,1742436669827,-150.0,0.00028433,2]
[356430335,1742436669836,-721.3,0.00028462,2]
[356430336,1742436669846,-500.0,0.00028462,2]
[356430337,1742436669855,-642.28,0.00028462,2]
[356430338,1742436669865,-548.62,0.00028462,2]
[356430339,1742436669875,-500.0,0.00028462,2]
[356430340,1742436669885,-500.0,0.00028462,2]
[356430341,1742436669896,-730.07,0.00028462,2]
[356430342,1742436669906,-500.0,0.00028462,2]
[356430343,1742436669916,-500.0,0.00028462,2]
[356430344,1742436669925,-703.57,0.00028462,2]
[356430345,1742436669935,-539.58,0.00028462,2]
[356430346,1742436669945,-500.0,0.00028462,2]
[356430347,1742436669955,-772.23,0.00028462,2]
[356430348,1742436669964,-603.87,0.00028472,2]
[356430349,1742436669974,-628.76,0.00028472,2]
[356430350,1742436669984,-650.27,0.00028472,2]
[356430351,1742436669993,-500.0,0.00028472,2]
[356430352,1742436670003,-500.0,0.00028472,2]
[356430353,1742436670012,-633.11802868,0.00028472,2]
[356430354,1742436670023,-415.30068312,0.00028472,2]
[356430355,1742436670033,-500.0,0.00028472,2]
[356430356,1742436670043,-500.0,0.00028472,2]
[356430357,1742436670053,-500.0,0.00028472,2]
[356430358,1742436670062,-500.0,0.00028472,2]
[356430359,1742436670072,-537.93,0.00028472,2]
[356430360,1742436670084,-500.0,0.00028472,2]
[356430361,1742436670093,-414.24354947,0.00028472,2]
[356430362,1742436670104,-500.0,0.00028472,2]
[356430363,1742436670114,-899.46,0.00028472,2]
[356430364,1742436670124,-500.0,0.00028472,2]
[356430365,1742436670134,-500.0,0.00028472,2]
[356430366,1742436670144,-500.0,0.00028472,2]
[356430367,1742436670154,-500.0,0.00028472,2]
[356430368,1742436670163,-718.62,0.00028472,2]
[356430369,1742436670172,-500.0,0.00028472,2]
[356430370,1742436670182,-500.0,0.00028472,2]
[356430371,1742436670192,-500.0,0.00028472,30]
[356430372,1742436670202,-592.26,0.00028472,2]
[356430374,1742436670211,-500.0,0.00028472,2]
[356430375,1742436670221,-500.0,0.00028472,2]
[356430376,1742436670231,-500.0,0.00028472,2]
[356430377,1742436670244,-500.0,0.00028472,2]
[356430378,1742436670253,-500.0,0.00028472,2]
[356430379,1742436670264,-1075.0,0.00028472,2]
[356430380,1742436670274,-674.87,0.00028472,2]
[356430381,1742436670284,-500.0,0.00028472,2]
[356430382,1742436670294,-852.02,0.00028472,2]
[356430383,1742436670303,-500.0,0.00028472,2]
[356430384,1742436670313,-500.0,0.00028472,2]
[356430385,1742436670323,-528.22,0.00028472,2]
[356430386,1742436670334,-500.0,0.00028472,2]
[356430387,1742436670343,-500.0,0.00028472,2]
[356430388,1742436670352,-500.0,0.00028472,2]
[356430389,1742436670363,-500.0,0.00028472,2]
[356430390,1742436670372,-500.0,0.00028472,2]
[356430391,1742436670381,-500.0,0.00028472,2]
[356430392,1742436670400,-500.0,0.00028472,2]
[356430393,1742436670411,-500.0,0.00028472,2]
[356430394,1742436670421,-500.0,0.00028472,2]
[356430395,1742436670431,-500.0,0.00028472,2]
[356430396,1742436670442,-500.0,0.00028472,2]
[356430397,1742436670452,-451.25377161,0.00028472,2]
[356430398,1742436670462,-513.25958156,0.00028472,2]
[356430399,1742436670472,-500.0,0.00028472,2]
[356430400,1742436670483,-500.0,0.00028472,2]
[356430401,1742436670494,-517.99,0.00028472,2]
[356430402,1742436670504,-656.08,0.00028472,2]
[356430403,1742436670515,-500.0,0.00028472,2]
[356430404,1742436670525,-500.0,0.00028472,2]
[356430405,1742436670535,-209.75214418,0.00028472,2]
[356430406,1742436670546,-500.0,0.00028472,2]
[356430407,1742436670556,-563.58427755,0.00028472,2]
[356430408,1742436670566,-575.91231845,0.00028472,2]
[356430409,1742436670576,-500.0,0.00028472,2]
[356430410,1742436670585,-213.67923375,0.00028472,2]
[356430411,1742436670597,-500.0,0.00028472,2]
[356430412,1742436670609,-544.49,0.00028472,2]
[356430413,1742436670626,-500.0,0.00028472,2]
[356430414,1742436670638,-500.0,0.00028472,2]
[356430415,1742436670648,-508.16,0.00028472,2]
[356430416,1742436670658,-500.0,0.00028472,2]
[356430417,1742436670667,-500.0,0.00028472,2]
[356430418,1742436670677,-500.0,0.00028472,2]
[356430419,1742436670687,-500.0,0.00028472,2]
[356430420,1742436670698,-500.0,0.00028472,2]
[356430421,1742436670709,-500.0,0.00028472,2]
[356430422,1742436670719,-500.0,0.00028472,2]
[356430423,1742436670729,-705.48,0.00028472,2]
[356430424,1742436670739,-500.0,0.00028472,2]
[356430425,1742436670749,-500.0,0.00028472,2]
[356430426,1742436670759,-500.0,0.00028472,2]
[356430427,1742436670770,-397.09292494,0.00028472,2]
[356430428,1742436670779,-500.0,0.00028472,2]
[356430429,1742436670789,-696.41,0.00028472,2]
[356430430,1742436670799,-500.0,0.00028472,2]
[356430431,1742436670889,-500.0,0.00028472,2]
[356430432,1742436670899,-500.0,0.00028472,2]
[356430433,1742436670910,-500.0,0.00028472,2]
[356430434,1742436670920,-500.0,0.00028472,2]
[356430435,1742436670930,-539.49,0.00028472,2]
[356430436,1742436670940,-500.0,0.00028472,2]
[356430437,1742436670951,-500.0,0.00028472,2]
[356430438,1742436670960,-500.0,0.00028472,2]
[356430439,1742436670969,-500.0,0.00028472,2]
[356430440,1742436670980,-500.0,0.00028472,2]
[356430441,1742436670990,-500.0,0.00028472,2]
[356430442,1742436671000,-529.55,0.00028472,2]
[356430443,1742436671010,-500.0,0.00028472,2]
[356430444,1742436671019,-737.99,0.00028472,2]
[356430445,1742436671030,-500.0,0.00028472,2]
[356430446,1742436671039,-500.0,0.00028472,2]
[356430447,1742436671049,-500.0,0.00028472,2]
[356430448,1742436671060,-668.7,0.00028472,2]
[356430449,1742436671069,-268.32180397,0.00028472,2]
[356430450,1742436671079,-574.08,0.00028472,2]
[356430451,1742436671088,-521.31,0.00028472,2]
[356430452,1742436671098,-753.72,0.00028472,2]
[356430453,1742436671107,-595.74,0.00028472,2]
[356430454,1742436671117,-500.0,0.00028472,2]
[356430455,1742436671127,-500.0,0.00028472,2]
[356430456,1742436671137,-500.0,0.00028472,2]
[356430457,1742436671147,-500.0,0.00028472,2]
[356430458,1742436671156,-500.0,0.00028472,2]
[356430459,1742436671165,-500.0,0.00028472,2]
[356430460,1742436671175,-612.03,0.00028472,2]
[356430461,1742436671185,-500.0,0.00028472,2]
[356430462,1742436671194,-627.85,0.00028472,2]
[356430463,1742436671204,-500.0,0.00028472,2]
[356430464,1742436671213,-287.07331433,0.00028472,2]
[356430465,1742436671223,-500.0,0.00028472,2]
[356430466,1742436671232,-500.0,0.00028472,2]
[356430467,1742436671244,-505.81,0.00028472,2]
[356430468,1742436671255,-500.0,0.00028472,2]
[356430469,1742436671265,-545.5,0.00028473,2]
[356430470,1742436671275,-500.0,0.00028473,2]
[356430471,1742436671285,-500.0,0.00028473,2]
[356430472,1742436671295,-1065.87,0.00028473,2]
[356430473,1742436671305,-525.47,0.00028473,2]
[356430474,1742436671314,-500.0,0.00028473,2]
[356430475,1742436671325,-522.62,0.00028473,2]
[356430476,1742436671335,-500.0,0.00028473,2]
[356430477,1742436671345,-521.26,0.00028473,2]
[356430478,1742436671357,-500.0,0.00028473,2]
[356430479,1742436671371,-500.0,0.00028473,2]
[356430480,1742436671380,-500.0,0.00028473,2]
[356430481,1742436671390,-387.24752554,0.00028473,2]
[356430482,1742436671400,-500.0,0.00028473,2]
[356430483,1742436671409,-500.0,0.00028473,2]
[356430484,1742436671419,-500.0,0.00028473,2]
[356430485,1742436671429,-500.0,0.00028473,2]
[356430486,1742436671439,-500.0,0.00028473,2]
[356430487,1742436671449,-500.0,0.00028473,2]
[356430488,1742436671458,-1182.06,0.00028473,2]
[356430489,1742436671469,-500.0,0.00028473,2]
[356430490,1742436671479,-500.0,0.00028473,2]
[356430491,1742436671489,-500.0,0.00028473,2]
[356430492,1742436671498,-646.97795065,0.00028473,2]
[356430493,1742436671507,-500.0,0.00028473,2]
[356430494,1742436671516,-500.0,0.00028473,2]
[356430495,1742436671526,-1235.06,0.00028473,2]
[356430496,1742436671536,-500.0,0.00028473,2]
[356430497,1742436671545,-567.44,0.00028473,2]
[356430498,1742436671555,-500.0,0.00028473,2]
[356430499,1742436671564,-500.0,0.00028473,2]
[356430500,1742436671573,-500.0,0.00028473,2]
[356430501,1742436671583,-500.0,0.00028473,2]
[356430502,1742436671593,-500.0,0.00028473,2]
[356430503,1742436671602,-500.0,0.00028473,2]
[356430504,1742436671614,-709.87,0.00028473,2]
[356430505,1742436671624,-669.19,0.00028473,2]
[356430506,1742436671634,-500.0,0.00028473,2]
[356430507,1742436671644,-500.0,0.00028473,2]
[356430508,1742436671653,-500.0,0.00028473,2]
[356430509,1742436671664,-500.0,0.00028473,2]
[356430510,1742436671674,-500.0,0.00028473,2]
[356430511,1742436671683,-500.0,0.00028473,2]
[356430512,1742436671693,-500.0,0.00028473,2]
[356430513,1742436671703,-500.0,0.00028473,2]
[356430514,1742436671712,-669.44,0.00028473,2]
[356430515,1742436671722,-500.0,0.00028473,2]
[356430516,1742436671731,-500.0,0.00028473,2]
[356430517,1742436671740,-638.73,0.00028473,2]
[356430518,1742436671750,-500.0,0.00028473,2]
[356430519,1742436671759,-252.66250198,0.00028473,2]
[356430520,1742436672407,-509.45195265,0.00027948,2]
[356430521,1742436672417,-500.0,0.00027979,2]
[356430522,1742436672427,-1316.54207164,0.00027981,12]
[356430523,1742436672449,-1012.72796142,0.00027981,12]
[356430524,1742436672603,-27000.0,0.00027981,12]
[356430525,1742436672615,-2604.8750154,0.00027981,12]
[356430526,1742436672630,-1995.48288896,0.00027981,12]
[356430527,1742436672701,-2274.15963101,0.00027981,12]
[356430528,1742436672712,-53791.07,0.00027981,12]
[356430529,1742436672759,-2612.30408965,0.00027981,12]
[356430530,1742436673579,-869.30755836,0.00027981,12]
[356430531,1742436673590,-1759.35999998,0.00027981,12]
[356430532,1742436673607,-1030.72594298,0.00027981,12]
[356430533,1742436673644,-4295.859,0.00027981,12]
[356430534,1742436673655,-695.90354994,0.00027981,12]
[356430537,1742437538152,1161.34121138,8e-05,2]
[356430538,1742437555987,1714.82552623,6.94e-05,2]
[356430539,1742437563805,1052.61948541,8e-05,2]
[356430540,1742437612891,1028.22381137,9.77e-05,2]
[356430541,1742437675224,1153.92351544,8e-05,2]
[356430542,1742437679838,113889.06645017,0.0001,2]
[356430543,1742437679862,9500.0,0.0001,2]
[356430552,1742437706643,376.67135833,7.888e-05,2]
[356430553,1742437712646,-250.01656051,9.828e-05,2]
[356430570,1742437813303,4719.19874085,0.0002,120]
[356430582,1742437831821,-1679.23841667,9.828e-05,2]
[356430583,1742437831832,-150.0,9.999e-05,2]
[356430584,1742437831842,-182.0985775,9.999e-05,2]
[356430585,1742437831851,-57759.63642905,0.0001,2]
[356430586,1742437831862,-904.89819539,0.0001,2]
[356430587,1742437831877,-7567.26684178,0.0001,2]
[356430588,1742437831887,-341.7,0.0001,2]
[356430639,1742437837610,-299.25,0.0001,2]
[356430640,1742437838233,-150.0,0.0001,2]
[356430644,1742437839932,-2942.54781803,0.0001,2]
[356430667,1742437842874,-656.32291511,0.0001,2]
[356430668,1742437842904,-330.37025421,0.0001,2]
[356430679,1742437845677,-19936.13955785,0.0001,2]
[356430680,1742437845688,-2274.14159,0.0001,2]
[356430681,1742437845734,-2890.33831613,0.0001,2]
[356430682,1742437845745,-1007.3814,0.0001,2]
[356430683,1742437845794,-271.83,0.0001,2]
[356430684,1742437845923,-950.83191993,0.0001,2]
[356430685,1742437845963,-39338.42848192,0.0001,2]
[356430686,1742437846020,-333031.93172093,0.0001,2]
[356430687,1742437846038,-187.17,0.00010959,2]
[356430688,1742437846049,-155.97,0.00010959,2]
[356430689,1742437846059,-779.89,0.00010959,2]
[356430690,1742437846069,-1603.63945726,0.00015,5]
[356430691,1742437846078,-4536.09660236,0.00022,2]
[356430692,1742437846087,-467.91244379,0.000236,3]
[356430693,1742437846098,-467.9124437,0.000236,3]
[356430694,1742437846107,-467.9124437,0.000236,3]
[356430695,1742437846117,-467.9124437,0.000236,3]
[356430696,1742437846126,-467.9124437,0.000236,3]
[356430697,1742437846136,-467.9124437,0.000236,3]
[356430698,1742437846146,-467.9124437,0.000236,3]
[356430699,1742437846155,-467.9124437,0.000236,3]
[356430700,1742437846165,-467.9124437,0.000236,3]
[356430701,1742437846174,-467.9124437,0.00023624,3]
[356430703,1742437846184,-646.44408634,0.00024658,2]
[356430706,1742437846193,-80326.1605086,0.000248,3]
[356430708,1742437846202,-204.9,0.00025021,2]
[356430710,1742437846212,-467.9124437,0.00025038,4]
[356430712,1742437846221,-467.9124437,0.00026452,4]
[356430713,1742437846231,-160.58,0.00026849,2]
[356430714,1742437846240,-452.0,0.00026941,2]
[356430715,1742437846250,-150.08,0.00027006,2]
[356430716,1742437846259,-442.56,0.00027041,2]
[356430717,1742437846268,-1000.0,0.00027053,2]
[356430718,1742437846277,-156.47,0.00027069,30]
[356430719,1742437846287,-150.0,0.00027116,7]
[356430720,1742437846296,-1011.506,0.0002712,15]
[356430721,1742437846305,-233.86,0.0002712,120]
[356430722,1742437846315,-209.092,0.0002712,15]
[356430723,1742437846324,-442.56,0.000272,2]
[356430724,1742437846334,-780.08,0.000272,2]
[356430725,1742437846348,-780.08,0.000272,2]
[356430726,1742437846357,-442.56,0.000272,2]
[356430727,1742437846367,-204.9,0.00027285,2]
[356430728,1742437846376,-14604.7564561,0.00027544,3]
[356430729,1742437846385,-24005.59,0.00027554,2]
[356430730,1742437846395,-342.8232825,0.00027618,4]
[356430731,1742437846404,-415.56,0.000277,2]
[356430732,1742437846413,-169.97,0.00027823,2]
[356430733,1742437846423,-415.56,0.00027843,2]
[356430734,1742437846433,-467.9124437,0.00027866,4]
[356430735,1742437846442,-1000.0,0.0002788,2]
[356430736,1742437846452,-415.56,0.00027899,2]
[356430737,1742437846461,-1000.0,0.000279,2]
[356430738,1742437846472,-1032.67,0.000279,2]
[356430739,1742437846482,-151.13850071,0.00027935,2]
[356430740,1742437846493,-433.0341598,0.00027935,2]
[356430741,1742437846503,-302.0,0.00027963,2]
[356430742,1742437846513,-14604.7564561,0.00027969,3]
[356430743,1742437846522,-14604.7564561,0.0002797,3]
[356430744,1742437846532,-155.88130119,0.00027973,5]
[356430745,1742437846542,-247.0,0.00027977,14]
[356430746,1742437846553,-500.0,0.00027979,2]
[356430747,1742437846563,-500.0,0.00027979,2]
[356430748,1742437846573,-500.0,0.00027979,2]
[356430749,1742437846582,-500.0,0.00027979,2]
[356430750,1742437846592,-500.0,0.00027979,2]
[356430751,1742437846603,-564.29741283,0.00027979,2]
[356430752,1742437846613,-500.0,0.00027979,2]
[356430753,1742437846626,-500.0,0.00027979,2]
[356430754,1742437846644,-255.84053588,0.00027979,2]
[356430755,1742437846665,-500.0,0.00027979,2]
[356430756,1742437846681,-500.0,0.00027979,2]
[356430757,1742437846693,-500.0,0.00027979,2]
[356430758,1742437846706,-500.0,0.00027979,2]
[356430759,1742437846718,-609.13327086,0.00027979,2]
[356430760,1742437846728,-500.0,0.00027979,2]
[356430761,1742437846738,-500.0,0.00027979,2]
[356430762,1742437846748,-500.0,0.00027979,2]
[356430763,1742437846758,-500.0,0.00027979,2]
[356430764,1742437846768,-500.0,0.00027979,2]
[356430765,1742437846789,-500.0,0.00027979,2]
[356430766,1742437846799,-500.0,0.00027979,2]
[356430767,1742437846808,-500.0,0.00027979,2]
[356430768,1742437846817,-500.0,0.00027979,2]
[356430769,1742437846827,-500.0,0.00027979,2]
[356430770,1742437846836,-500.0,0.00027979,2]
[356430771,1742437846845,-500.0,0.00027979,2]
[356430772,1742437846855,-500.0,0.00027979,2]
[356430773,1742437846864,-500.0,0.00027979,2]
[356430774,1742437846873,-500.0,0.00027979,2]
[356430775,1742437846882,-500.0,0.00027979,2]
[356430776,1742437846891,-500.0,0.00027979,2]
[356430777,1742437846901,-528.41732718,0.00027979,2]
[356430778,1742437846911,-500.0,0.00027979,2]
[356430779,1742437846921,-500.0,0.00027979,2]
[356430780,1742437846930,-500.0,0.00027979,2]
[356430781,1742437846940,-500.0,0.00027979,2]
[356430782,1742437846950,-500.0,0.00027979,2]
[356430783,1742437846960,-500.0,0.00027979,2]
[356430784,1742437846969,-500.0,0.00027979,2]
[356430785,1742437846978,-500.0,0.00027979,2]
[356430786,1742437846988,-500.0,0.00027979,2]
[356430787,1742437846998,-500.0,0.00027979,2]
[356430788,1742437847008,-689.54,0.00027979,2]
[356430789,1742437847018,-500.0,0.00027979,2]
[356430790,1742437847028,-500.0,0.00027979,2]
[356430791,1742437847038,-500.0,0.00027979,2]
[356430792,1742437847047,-500.0,0.00027979,2]
[356430793,1742437847057,-500.0,0.00027979,2]
[356430794,1742437847066,-7302.37822805,0.00027979,3]
[356430795,1742437847076,-500.0,0.0002798,2]
[356430796,1742437847085,-500.0,0.0002798,2]
[356430797,1742437847095,-500.0,0.0002798,2]
[356430798,1742437847104,-500.0,0.0002798,2]
[356430799,1742437847113,-500.0,0.0002798,2]
[356430800,1742437847123,-300.0,0.0002798,2]
[356430801,1742437847132,-500.0,0.0002798,2]
[356430802,1742437847141,-500.0,0.0002798,2]
[356430803,1742437847151,-500.0,0.0002798,2]
[356430804,1742437847161,-482.21979711,0.0002798,2]
[356430805,1742437847171,-500.0,0.0002798,2]
[356430806,1742437847180,-500.0,0.0002798,2]
[356430807,1742437847190,-500.0,0.0002798,2]
[356430808,1742437847199,-500.0,0.0002798,30]
[356430809,1742437847209,-500.0,0.0002798,2]
[356430810,1742437847218,-500.0,0.0002798,2]
[356430811,1742437847228,-500.0,0.0002798,2]
[356430812,1742437847237,-627.08,0.0002798,2]
[356430813,1742437847247,-620.29853715,0.0002798,2]
[356430814,1742437847256,-500.0,0.0002798,2]
[356430815,1742437847265,-500.0,0.0002798,2]
[356430816,1742437847556,-500.0,0.0002798,2]
[356430817,1742437847566,-500.0,0.0002798,2]
[356430818,1742437847576,-500.0,0.0002798,2]
[356430819,1742437847585,-500.0,0.0002798,2]
[356430820,1742437847595,-500.0,0.0002798,2]
[356430821,1742437847604,-500.0,0.0002798,2]
[356430822,1742437847614,-522.56150174,0.0002798,2]
[356430823,1742437847628,-500.0,0.0002798,2]
[356430824,1742437847637,-500.0,0.0002798,2]
[356430825,1742437847647,-500.0,0.0002798,2]
[356430826,1742437847658,-372.5482753,0.0002798,2]
[356430827,1742437847669,-500.0,0.0002798,2]
[356430828,1742437847681,-500.0,0.0002798,2]
[356430829,1742437847691,-621.76,0.0002798,2]
[356430830,1742437847702,-500.0,0.0002798,2]
[356430831,1742437847711,-500.0,0.0002798,2]
[356430832,1742437847721,-500.0,0.0002798,2]
[356430833,1742437847732,-500.0,0.0002798,2]
[356430834,1742437847741,-500.0,0.0002798,2]
[356430835,1742437847751,-500.0,0.0002798,2]
[356430836,1742437847762,-500.0,0.0002798,2]
[356430837,1742437847771,-500.0,0.0002798,2]
[356430838,1742437847782,-500.0,0.0002798,2]
[356430839,1742437847792,-500.0,0.0002798,2]
[356430840,1742437847803,-500.0,0.0002798,2]
[356430841,1742437847812,-500.0,0.0002798,2]
[356430842,1742437847824,-500.0,0.0002798,2]
[356430843,1742437847834,-500.0,0.0002798,2]
[356430844,1742437847844,-500.0,0.0002798,2]
[356430845,1742437847854,-500.0,0.0002798,2]
[356430846,1742437847863,-5000.0,0.00027988,2]
[356430847,1742437847873,-541.1037,0.00027988,2]
[356430848,1742437847883,-1379.8647,0.00027989,2]
[356430849,1742437847892,-3641.03232266,0.0002799,3]
[356430850,1742437876113,259.95004738,0.00023,120]
[356430851,1742438560570,300.0,0.00023,120]
[356430852,1742438633255,397.0,0.00023,120]
[356430859,1742439031877,-205.0,0.00023,5]
[356430860,1742439031887,-300.0,0.00024,120]
[356430861,1742439031897,-184.41,0.00024693,2]
[356430862,1742439031907,-300.0,0.00025,120]
[356430863,1742439031918,-506.47579513,0.00026781,2]
[356430864,1742439031929,-150.57,0.00026826,2]
[356430865,1742439031938,-150.0,0.00026831,7]
[356430866,1742439031948,-195.59,0.00026836,120]
[356430867,1742439031958,-856.46502017,0.00026851,2]
[356430868,1742439032092,-143.53497983,0.00026851,2]
[356430869,1742439032103,-506.47579513,0.00026857,2]
[356430870,1742439032114,-156.47,0.00026881,30]